[Event "Late Titled Tuesday Blitz February 8 2022"]
[White "Garriga Cazorla, Pere"]
[Black "Poormosavi, Seyed Kian"]
[WhiteFideId "32011601"]
[BlackFideId "12585807"]
[WhiteElo "2458"]
[BlackElo "2116"]
[Result "1-0"]
[Round "07"]
[TimeControl "180+1"]
[Date "2022.02.09"]
[WhiteClock "0:00:18"]
[BlackClock "0:00:03"]

1. Nf3 {[%clk 0:03:00]}  Nf6 {[%clk 0:02:56]} 2. c4 {[%clk 0:03:00]}  b6 {[%clk 0:02:56]} 3. Nc3 {[%clk 0:02:59]}  Bb7 {[%clk 0:02:57]} 4. g3 {[%clk 0:02:59]}  g6 {[%clk 0:02:57]} 5. Bg2 {[%clk 0:02:59]}  Bg7 {[%clk 0:02:57]} 6. O-O {[%clk 0:02:59]}  O-O {[%clk 0:02:57]} 7. Re1 {[%clk 0:03:00]}  d5 {[%clk 0:02:57]} 8. cxd5 {[%clk 0:03:00]}  Nxd5 {[%clk 0:02:58]} 9. e4 {[%clk 0:02:53]}  Nxc3 {[%clk 0:02:55]} 10. bxc3 {[%clk 0:02:53]}  c6 {[%clk 0:02:55]} 11. d4 {[%clk 0:02:52]}  c5 {[%clk 0:02:55]} 12. d5 {[%clk 0:02:52]}  Bxc3 {[%clk 0:02:48]} 13. Bh6 {[%clk 0:02:51]}  Re8 {[%clk 0:02:43]} 14. Re3 {[%clk 0:02:51]}  Bxa1 {[%clk 0:02:32]} 15. Qxa1 {[%clk 0:02:52]}  f6 {[%clk 0:02:31]} 16. h4 {[%clk 0:02:51]}  e5 {[%clk 0:02:24]} 17. dxe6 {[%clk 0:02:41]}  Nc6 {[%clk 0:02:15]} 18. e5 {[%clk 0:02:27]}  Nd4 {[%clk 0:01:58]} 19. Nxd4 {[%clk 0:01:44]}  Bxg2 {[%clk 0:01:34]} 20. Nb5 {[%clk 0:01:10]}  Rxe6 {[%clk 0:00:45]} 21. Kxg2 {[%clk 0:01:07]}  Qd5+ {[%clk 0:00:46]} 22. Kh2 {[%clk 0:01:03]}  fxe5 {[%clk 0:00:43]} 23. Nc7 {[%clk 0:01:02]}  Qc6 {[%clk 0:00:42]} 24. Nxa8 {[%clk 0:01:00]}  Qxa8 {[%clk 0:00:39]} 25. Rxe5 {[%clk 0:01:00]}  Rf6 {[%clk 0:00:35]} 26. Rf5 {[%clk 0:00:52]}  Rf7 {[%clk 0:00:22]} 27. Rxf7 {[%clk 0:00:51]}  Kxf7 {[%clk 0:00:23]} 28. Qg7+ {[%clk 0:00:51]}  Ke6 {[%clk 0:00:23]} 29. Qxh7 {[%clk 0:00:51]}  Qe4 {[%clk 0:00:22]} 30. Qxa7 {[%clk 0:00:44]}  Qc2 {[%clk 0:00:16]} 31. Qxb6+ {[%clk 0:00:43]}  Kf5 {[%clk 0:00:17]} 32. Be3 {[%clk 0:00:43]}  c4 {[%clk 0:00:17]} 33. Qc5+ {[%clk 0:00:43]}  Ke4 {[%clk 0:00:16]} 34. Qd4+ {[%clk 0:00:34]}  Kf3 {[%clk 0:00:17]} 35. Qd5+ {[%clk 0:00:25]}  Ke2 {[%clk 0:00:16]} 36. Kg2 {[%clk 0:00:25]}  Qxa2 {[%clk 0:00:09]} 37. g4 {[%clk 0:00:22]}  Qc2 {[%clk 0:00:06]} 38. Qf3+ {[%clk 0:00:19]}  Ke1 {[%clk 0:00:06]} 39. Kg3 {[%clk 0:00:19]}  Qd3 {[%clk 0:00:05]} 40. Qh1+ {[%clk 0:00:17]}  Ke2 {[%clk 0:00:04]} 41. Qf3+ {[%clk 0:00:17]}  Ke1 {[%clk 0:00:05]} 42. Qf4 {[%clk 0:00:15]}  c3 {[%clk 0:00:04]} 43. Qd4 {[%clk 0:00:15]}  Qxd4 {[%clk 0:00:01]} 44. Bxd4 {[%clk 0:00:16]}  c2 {[%clk 0:00:02]} 45. Be3 {[%clk 0:00:16]}  Ke2 {[%clk 0:00:02]} 46. h5 {[%clk 0:00:17]}  gxh5 {[%clk 0:00:03]} 47. gxh5 {[%clk 0:00:18]} 1-0


[Site "https://www.chess.com"]

[Event "Late Titled Tuesday Blitz February 8 2022"]
[White "Goltseva, Ekaterina"]
[Black "Garcia Martin, Marta"]
[WhiteFideId "24173770"]
[BlackFideId "32084030"]
[WhiteElo "2140"]
[BlackElo "2102"]
[Result "0-1"]
[Round "07"]
[TimeControl "180+1"]
[Date "2022.02.08"]
[WhiteClock "0:00:11"]
[BlackClock "0:00:34"]

1. d4 {[%clk 0:03:00]}  b6 {[%clk 0:02:48]} 2. c4 {[%clk 0:03:00]}  Bb7 {[%clk 0:02:48]} 3. Nc3 {[%clk 0:02:59]}  e6 {[%clk 0:02:48]} 4. a3 {[%clk 0:02:59]}  Nf6 {[%clk 0:02:48]} 5. d5 {[%clk 0:03:00]}  exd5 {[%clk 0:02:49]} 6. cxd5 {[%clk 0:03:00]}  Bd6 {[%clk 0:02:49]} 7. Bg5 {[%clk 0:03:00]}  h6 {[%clk 0:02:48]} 8. Bh4 {[%clk 0:02:59]}  O-O {[%clk 0:02:48]} 9. Nf3 {[%clk 0:03:00]}  Re8 {[%clk 0:02:48]} 10. e3 {[%clk 0:03:00]}  c6 {[%clk 0:02:14]} 11. Bc4 {[%clk 0:02:42]}  Na6 {[%clk 0:02:04]} 12. O-O {[%clk 0:02:32]}  Nc7 {[%clk 0:02:04]} 13. dxc6 {[%clk 0:02:03]}  dxc6 {[%clk 0:02:05]} 14. Qb3 {[%clk 0:02:01]}  Qe7 {[%clk 0:01:56]} 15. Rad1 {[%clk 0:01:56]}  Rad8 {[%clk 0:01:44]} 16. Nd4 {[%clk 0:01:46]}  Be5 {[%clk 0:01:31]} 17. Nf5 {[%clk 0:01:44]}  Qf8 {[%clk 0:01:31]} 18. f4 {[%clk 0:00:50]}  Bxc3 {[%clk 0:01:27]} 19. Qxc3 {[%clk 0:00:47]}  Rxd1 {[%clk 0:01:23]} 20. Rxd1 {[%clk 0:00:46]}  Nfd5 {[%clk 0:01:18]} 21. Qd4 {[%clk 0:00:26]}  g6 {[%clk 0:00:59]} 22. e4 {[%clk 0:00:19]}  gxf5 {[%clk 0:00:54]} 23. exd5 {[%clk 0:00:18]}  Nxd5 {[%clk 0:00:51]} 24. Bxd5 {[%clk 0:00:18]}  cxd5 {[%clk 0:00:52]} 25. Rd3 {[%clk 0:00:16]}  Qc5 {[%clk 0:00:44]} 26. Rg3+ {[%clk 0:00:13]}  Kf8 {[%clk 0:00:44]} 27. Bf6 {[%clk 0:00:11]}  Qc1+ {[%clk 0:00:35]} 28. Kf2 {[%clk 0:00:10]}  Qe1+ {[%clk 0:00:34]} 29. Kf3 {[%clk 0:00:11]}  Qe2# {[%clk 0:00:34]} 0-1


[Site "https://www.chess.com"]

[Event "Late Titled Tuesday Blitz February 8 2022"]
[White "Goryachkina, Aleksandra"]
[Black "Lenderman, Aleksandr"]
[WhiteFideId "4147103"]
[BlackFideId "2021285"]
[WhiteElo "2426"]
[BlackElo "2651"]
[Result "1/2-1/2"]
[Round "07"]
[TimeControl "180+1"]
[Date "2022.02.08"]
[WhiteClock "0:00:07"]
[BlackClock "0:01:05"]

1. e4 {[%clk 0:02:59]}  c6 {[%clk 0:02:57]} 2. d4 {[%clk 0:02:58]}  d5 {[%clk 0:02:57]} 3. exd5 {[%clk 0:02:59]}  cxd5 {[%clk 0:02:57]} 4. Bd3 {[%clk 0:02:59]}  Nc6 {[%clk 0:02:51]} 5. c3 {[%clk 0:02:59]}  Qc7 {[%clk 0:02:52]} 6. Ne2 {[%clk 0:02:59]}  Bg4 {[%clk 0:02:50]} 7. O-O {[%clk 0:02:58]}  e6 {[%clk 0:02:49]} 8. Qe1 {[%clk 0:02:55]}  Nf6 {[%clk 0:02:49]} 9. f3 {[%clk 0:02:45]}  Bh5 {[%clk 0:02:48]} 10. Qh4 {[%clk 0:02:43]}  Bg6 {[%clk 0:02:47]} 11. Bxg6 {[%clk 0:02:42]}  fxg6 {[%clk 0:02:47]} 12. Nf4 {[%clk 0:02:32]}  Kf7 {[%clk 0:02:47]} 13. Nh3 {[%clk 0:02:01]}  Re8 {[%clk 0:02:45]} 14. Bf4 {[%clk 0:02:00]}  Qb6 {[%clk 0:02:42]} 15. Nd2 {[%clk 0:01:53]}  h6 {[%clk 0:02:40]} 16. Nb3 {[%clk 0:01:43]}  e5 {[%clk 0:02:23]} 17. Be3 {[%clk 0:01:39]}  exd4 {[%clk 0:02:23]} 18. Bxd4 {[%clk 0:01:36]}  Nxd4 {[%clk 0:02:23]} 19. Qxd4 {[%clk 0:01:14]}  Qxd4+ {[%clk 0:02:22]} 20. Nxd4 {[%clk 0:01:13]}  Bc5 {[%clk 0:02:22]} 21. Rad1 {[%clk 0:01:06]}  Re2 {[%clk 0:02:20]} 22. Rf2 {[%clk 0:01:05]}  Rxf2 {[%clk 0:02:20]} 23. Nxf2 {[%clk 0:01:01]}  g5 {[%clk 0:02:21]} 24. Kf1 {[%clk 0:00:58]}  Re8 {[%clk 0:02:19]} 25. Nb3 {[%clk 0:00:55]}  Bb6 {[%clk 0:02:18]} 26. Re1 {[%clk 0:00:49]}  Rd8 {[%clk 0:02:17]} 27. Nd3 {[%clk 0:00:49]}  d4 {[%clk 0:02:16]} 28. c4 {[%clk 0:00:48]}  Bc7 {[%clk 0:02:16]} 29. Nbc5 {[%clk 0:00:43]}  Bxh2 {[%clk 0:02:14]} 30. Nxb7 {[%clk 0:00:39]}  Rb8 {[%clk 0:02:14]} 31. Nbc5 {[%clk 0:00:37]}  Bg3 {[%clk 0:02:09]} 32. Re2 {[%clk 0:00:35]}  h5 {[%clk 0:02:06]} 33. Ne4 {[%clk 0:00:34]}  Nxe4 {[%clk 0:02:05]} 34. Rxe4 {[%clk 0:00:34]}  Rd8 {[%clk 0:02:01]} 35. b4 {[%clk 0:00:29]}  h4 {[%clk 0:02:00]} 36. c5 {[%clk 0:00:28]}  Kf6 {[%clk 0:01:59]} 37. c6 {[%clk 0:00:24]}  a6 {[%clk 0:01:57]} 38. a4 {[%clk 0:00:23]}  Bc7 {[%clk 0:01:56]} 39. b5 {[%clk 0:00:18]}  axb5 {[%clk 0:01:55]} 40. axb5 {[%clk 0:00:19]}  Rd5 {[%clk 0:01:56]} 41. Ke2 {[%clk 0:00:08]}  Rxb5 {[%clk 0:01:54]} 42. Rxd4 {[%clk 0:00:08]}  Rb6 {[%clk 0:01:52]} 43. Nb4 {[%clk 0:00:07]}  Ke6 {[%clk 0:01:49]} 44. Re4+ {[%clk 0:00:05]}  Kd6 {[%clk 0:01:48]} 45. Rd4+ {[%clk 0:00:02]}  Kc5 {[%clk 0:01:48]} 46. Rd7 {[%clk 0:00:02]}  Bf4 {[%clk 0:01:40]} 47. Nd3+ {[%clk 0:00:02]}  Kxc6 {[%clk 0:01:40]} 48. Rxg7 {[%clk 0:00:02]}  Kd5 {[%clk 0:01:35]} 49. Nxf4+ {[%clk 0:00:02]}  gxf4 {[%clk 0:01:35]} 50. Rg5+ {[%clk 0:00:03]}  Kd4 {[%clk 0:01:35]} 51. Rg7 {[%clk 0:00:03]}  Rb2+ {[%clk 0:01:35]} 52. Kf1 {[%clk 0:00:04]}  h3 {[%clk 0:01:35]} 53. gxh3 {[%clk 0:00:04]}  Ke3 {[%clk 0:01:35]} 54. Rc7 {[%clk 0:00:03]}  Rb3 {[%clk 0:01:16]} 55. Kg2 {[%clk 0:00:03]}  Rb2+ {[%clk 0:01:16]} 56. Kf1 {[%clk 0:00:03]}  Rf2+ {[%clk 0:01:16]} 57. Kg1 {[%clk 0:00:03]}  Rxf3 {[%clk 0:00:58]} 58. Rc3+ {[%clk 0:00:03]}  Ke4 {[%clk 0:00:59]} 59. Rxf3 {[%clk 0:00:04]}  Kxf3 {[%clk 0:01:00]} 60. Kf1 {[%clk 0:00:04]}  Kg3 {[%clk 0:01:00]} 61. h4 {[%clk 0:00:04]}  Kxh4 {[%clk 0:01:00]} 62. Kf2 {[%clk 0:00:05]}  Kg4 {[%clk 0:01:01]} 63. Kg2 {[%clk 0:00:05]}  f3+ {[%clk 0:01:02]} 64. Kf2 {[%clk 0:00:06]}  Kf4 {[%clk 0:01:02]} 65. Kf1 {[%clk 0:00:06]}  Kg3 {[%clk 0:01:03]} 66. Kg1 {[%clk 0:00:06]}  f2+ {[%clk 0:01:04]} 67. Kf1 {[%clk 0:00:07]}  Kf3 {[%clk 0:01:05]} 1/2-1/2


[Site "https://www.chess.com"]

[Event "Late Titled Tuesday Blitz February 8 2022"]
[White "Hoffmann, Asa"]
[Black "Levine, David"]
[WhiteFideId "2001470"]
[BlackFideId "2011611"]
[WhiteElo "2117"]
[BlackElo "2132"]
[Result "1-0"]
[Round "07"]
[TimeControl "180+1"]
[Date "2022.02.09"]
[WhiteClock "0:00:48"]
[BlackClock "0:00:24"]

1. d4 {[%clk 0:02:49]}  Nf6 {[%clk 0:02:59]} 2. Bg5 {[%clk 0:02:48]}  Ne4 {[%clk 0:02:53]} 3. Bf4 {[%clk 0:02:48]}  d5 {[%clk 0:02:53]} 4. f3 {[%clk 0:02:47]}  Nf6 {[%clk 0:02:52]} 5. e4 {[%clk 0:02:46]}  e6 {[%clk 0:02:52]} 6. e5 {[%clk 0:02:46]}  Nfd7 {[%clk 0:02:52]} 7. Be3 {[%clk 0:02:46]}  c5 {[%clk 0:02:51]} 8. c3 {[%clk 0:02:46]}  Nc6 {[%clk 0:02:50]} 9. f4 {[%clk 0:02:46]}  f5 {[%clk 0:02:44]} 10. Nf3 {[%clk 0:02:44]}  cxd4 {[%clk 0:02:40]} 11. cxd4 {[%clk 0:02:44]}  Nb6 {[%clk 0:02:40]} 12. Nc3 {[%clk 0:02:43]}  Bd7 {[%clk 0:02:40]} 13. Be2 {[%clk 0:02:34]}  Be7 {[%clk 0:02:39]} 14. O-O {[%clk 0:02:34]}  a5 {[%clk 0:02:38]} 15. a3 {[%clk 0:02:32]}  a4 {[%clk 0:02:38]} 16. Kh1 {[%clk 0:02:25]}  Na5 {[%clk 0:02:29]} 17. Rb1 {[%clk 0:02:13]}  Nbc4 {[%clk 0:02:16]} 18. Bf2 {[%clk 0:02:13]}  Nb3 {[%clk 0:02:13]} 19. Rg1 {[%clk 0:02:10]}  h5 {[%clk 0:02:03]} 20. Bxc4 {[%clk 0:02:07]}  dxc4 {[%clk 0:02:02]} 21. d5 {[%clk 0:02:07]}  exd5 {[%clk 0:01:54]} 22. Qxd5 {[%clk 0:02:00]}  Qc8 {[%clk 0:01:13]} 23. Rbd1 {[%clk 0:01:49]}  Be6 {[%clk 0:01:11]} 24. Qb5+ {[%clk 0:01:41]}  Kf8 {[%clk 0:01:10]} 25. Nd4 {[%clk 0:01:33]}  Bd7 {[%clk 0:01:06]} 26. Qd5 {[%clk 0:01:24]}  Bc6 {[%clk 0:01:06]} 27. Nxc6 {[%clk 0:01:15]}  Qxc6 {[%clk 0:01:05]} 28. Qxc6 {[%clk 0:01:01]}  bxc6 {[%clk 0:01:05]} 29. Rd7 {[%clk 0:01:00]}  Rb8 {[%clk 0:00:46]} 30. Rgd1 {[%clk 0:00:58]}  Nc5 {[%clk 0:00:41]} 31. Rxe7 {[%clk 0:00:57]}  Kxe7 {[%clk 0:00:40]} 32. Bxc5+ {[%clk 0:00:57]}  Kf7 {[%clk 0:00:37]} 33. Rd2 {[%clk 0:00:56]}  Rhd8 {[%clk 0:00:35]} 34. Bd6 {[%clk 0:00:56]}  Rb3 {[%clk 0:00:31]} 35. g3 {[%clk 0:00:53]}  Ke6 {[%clk 0:00:31]} 36. Kg2 {[%clk 0:00:52]}  h4 {[%clk 0:00:31]} 37. Kf3 {[%clk 0:00:51]}  hxg3 {[%clk 0:00:31]} 38. hxg3 {[%clk 0:00:51]}  g5 {[%clk 0:00:29]} 39. Ke3 {[%clk 0:00:49]}  gxf4+ {[%clk 0:00:28]} 40. gxf4 {[%clk 0:00:49]}  Rh8 {[%clk 0:00:28]} 41. Kd4 {[%clk 0:00:49]}  Rh4 {[%clk 0:00:24]} 42. Rf2 {[%clk 0:00:48]} 1-0


[Site "https://www.chess.com"]

[Event "Late Titled Tuesday Blitz February 8 2022"]
[White "Horvath, Dominik"]
[Black "Sjugirov, Sanan"]
[WhiteFideId "1642561"]
[BlackFideId "4189302"]
[WhiteElo "2336"]
[BlackElo "2602"]
[Result "1-0"]
[Round "07"]
[TimeControl "180+1"]
[Date "2022.02.08"]
[WhiteClock "0:00:02"]
[BlackClock "0:00:01"]

1. e4 {[%clk 0:03:00]}  e5 {[%clk 0:02:59]} 2. Nf3 {[%clk 0:03:00]}  Nc6 {[%clk 0:02:59]} 3. Bb5 {[%clk 0:02:51]}  a6 {[%clk 0:02:57]} 4. Ba4 {[%clk 0:02:51]}  Nf6 {[%clk 0:02:57]} 5. O-O {[%clk 0:02:51]}  Be7 {[%clk 0:02:52]} 6. Re1 {[%clk 0:02:50]}  b5 {[%clk 0:02:52]} 7. Bb3 {[%clk 0:02:50]}  Bb7 {[%clk 0:02:52]} 8. d3 {[%clk 0:02:48]}  O-O {[%clk 0:02:50]} 9. a4 {[%clk 0:02:47]}  d6 {[%clk 0:02:47]} 10. Bd2 {[%clk 0:02:36]}  Nd7 {[%clk 0:02:38]} 11. Nc3 {[%clk 0:02:32]}  b4 {[%clk 0:02:34]} 12. Nd5 {[%clk 0:02:29]}  a5 {[%clk 0:02:34]} 13. c3 {[%clk 0:02:17]}  bxc3 {[%clk 0:02:34]} 14. bxc3 {[%clk 0:02:18]}  Nc5 {[%clk 0:02:24]} 15. Bc4 {[%clk 0:02:14]}  Ba6 {[%clk 0:02:23]} 16. Bxa6 {[%clk 0:02:06]}  Rxa6 {[%clk 0:02:23]} 17. Be3 {[%clk 0:01:58]}  Nd7 {[%clk 0:02:19]} 18. Qb3 {[%clk 0:01:53]}  Qc8 {[%clk 0:01:32]} 19. Rab1 {[%clk 0:01:38]}  Nf6 {[%clk 0:01:13]} 20. Nxe7+ {[%clk 0:01:08]}  Nxe7 {[%clk 0:01:13]} 21. Bg5 {[%clk 0:01:07]}  Rb6 {[%clk 0:01:08]} 22. Qa2 {[%clk 0:01:05]}  Rxb1 {[%clk 0:00:40]} 23. Rxb1 {[%clk 0:01:04]}  Qa6 {[%clk 0:00:41]} 24. Bxf6 {[%clk 0:00:59]}  gxf6 {[%clk 0:00:42]} 25. Qd2 {[%clk 0:00:38]}  Ng6 {[%clk 0:00:32]} 26. g3 {[%clk 0:00:37]}  Qa8 {[%clk 0:00:25]} 27. h4 {[%clk 0:00:21]}  Rb8 {[%clk 0:00:23]} 28. Rxb8+ {[%clk 0:00:21]}  Qxb8 {[%clk 0:00:24]} 29. h5 {[%clk 0:00:21]}  Nf8 {[%clk 0:00:15]} 30. Qh6 {[%clk 0:00:21]}  Nd7 {[%clk 0:00:12]} 31. Nh4 {[%clk 0:00:20]}  Qf8 {[%clk 0:00:11]} 32. Qe3 {[%clk 0:00:20]}  Nc5 {[%clk 0:00:07]} 33. Nf5 {[%clk 0:00:16]}  Nxa4 {[%clk 0:00:07]} 34. Qa7 {[%clk 0:00:15]}  Nxc3 {[%clk 0:00:06]} 35. Qxa5 {[%clk 0:00:15]}  Ne2+ {[%clk 0:00:06]} 36. Kg2 {[%clk 0:00:14]}  c5 {[%clk 0:00:05]} 37. Qc7 {[%clk 0:00:11]}  Nd4 {[%clk 0:00:05]} 38. Nxd6 {[%clk 0:00:11]}  Ne6 {[%clk 0:00:02]} 39. Qd7 {[%clk 0:00:09]}  Nd4 {[%clk 0:00:01]} 40. Qc7 {[%clk 0:00:08]}  Ne6 {[%clk 0:00:01]} 41. Qc6 {[%clk 0:00:08]}  Nd4 {[%clk 0:00:01]} 42. Qd5 {[%clk 0:00:08]}  Ne6 {[%clk 0:00:01]} 43. Nf5 {[%clk 0:00:08]}  Qd8 {[%clk 0:00:02]} 44. Nd6 {[%clk 0:00:04]}  Kf8 {[%clk 0:00:02]} 45. h6 {[%clk 0:00:05]}  Ke7 {[%clk 0:00:02]} 46. Nf5+ {[%clk 0:00:05]}  Kf8 {[%clk 0:00:02]} 47. Qb7 {[%clk 0:00:04]}  Kg8 {[%clk 0:00:02]} 48. Ne7+ {[%clk 0:00:04]}  Kf8 {[%clk 0:00:02]} 49. Nd5 {[%clk 0:00:04]}  f5 {[%clk 0:00:02]} 50. exf5 {[%clk 0:00:04]}  Nd4 {[%clk 0:00:02]} 51. f6 {[%clk 0:00:04]}  Ne6 {[%clk 0:00:02]} 52. Qc6 {[%clk 0:00:03]}  Kg8 {[%clk 0:00:02]} 53. Ne7+ {[%clk 0:00:03]}  Kh8 {[%clk 0:00:02]} 54. Qe4 {[%clk 0:00:03]}  Qf8 {[%clk 0:00:02]} 55. Qe3 {[%clk 0:00:03]}  Nd4 {[%clk 0:00:02]} 56. Qg5 {[%clk 0:00:03]}  Ne6 {[%clk 0:00:01]} 57. Qg7+ {[%clk 0:00:02]} 1-0


[Site "https://www.chess.com"]

[Event "Late Titled Tuesday Blitz February 8 2022"]
[White "Howell, David W L"]
[Black "Beerdsen, Thomas"]
[WhiteFideId "410608"]
[BlackFideId "1030108"]
[WhiteElo "2559"]
[BlackElo "2585"]
[Result "1-0"]
[Round "07"]
[TimeControl "180+1"]
[Date "2022.02.08"]
[WhiteClock "0:00:08"]
[BlackClock "0:00:03"]

1. e4 {[%clk 0:03:00]}  e5 {[%clk 0:03:00]} 2. Nf3 {[%clk 0:02:59]}  Nc6 {[%clk 0:03:00]} 3. Nc3 {[%clk 0:02:59]}  Nf6 {[%clk 0:03:00]} 4. Bb5 {[%clk 0:03:00]}  Bd6 {[%clk 0:03:00]} 5. d3 {[%clk 0:02:59]}  O-O {[%clk 0:03:00]} 6. a3 {[%clk 0:02:59]}  Re8 {[%clk 0:03:00]} 7. Bc4 {[%clk 0:02:57]}  h6 {[%clk 0:02:58]} 8. g4 {[%clk 0:02:56]}  Bc5 {[%clk 0:02:49]} 9. g5 {[%clk 0:02:51]}  Ng4 {[%clk 0:02:47]} 10. Rf1 {[%clk 0:02:38]}  d5 {[%clk 0:02:35]} 11. Bxd5 {[%clk 0:02:25]}  Nd4 {[%clk 0:02:23]} 12. h3 {[%clk 0:01:45]}  c6 {[%clk 0:02:00]} 13. Ba2 {[%clk 0:01:42]}  g6 {[%clk 0:01:33]} 14. gxh6 {[%clk 0:01:24]}  Qf6 {[%clk 0:01:20]} 15. Nxd4 {[%clk 0:01:23]}  exd4 {[%clk 0:01:21]} 16. hxg4 {[%clk 0:01:23]}  dxc3 {[%clk 0:01:20]} 17. b4 {[%clk 0:01:10]}  Bd4 {[%clk 0:00:48]} 18. g5 {[%clk 0:01:10]}  Qd6 {[%clk 0:00:43]} 19. Qf3 {[%clk 0:01:06]}  Be6 {[%clk 0:00:43]} 20. Bxe6 {[%clk 0:00:59]}  Rxe6 {[%clk 0:00:44]} 21. Be3 {[%clk 0:00:59]}  a5 {[%clk 0:00:44]} 22. Ke2 {[%clk 0:00:55]}  b5 {[%clk 0:00:31]} 23. Qf4 {[%clk 0:00:49]}  Be5 {[%clk 0:00:27]} 24. Qg4 {[%clk 0:00:45]}  Qd7 {[%clk 0:00:20]} 25. f4 {[%clk 0:00:38]}  Bd4 {[%clk 0:00:14]} 26. f5 {[%clk 0:00:39]}  Re5 {[%clk 0:00:09]} 27. Bxd4 {[%clk 0:00:27]}  Qxd4 {[%clk 0:00:10]} 28. fxg6 {[%clk 0:00:27]}  fxg6 {[%clk 0:00:11]} 29. Qf4 {[%clk 0:00:25]}  Re7 {[%clk 0:00:07]} 30. Qf6 {[%clk 0:00:19]}  Qd7 {[%clk 0:00:06]} 31. Qxg6+ {[%clk 0:00:17]}  Kh8 {[%clk 0:00:07]} 32. Qf6+ {[%clk 0:00:17]}  Kg8 {[%clk 0:00:08]} 33. Rf4 {[%clk 0:00:12]}  Qh3 {[%clk 0:00:05]} 34. Qxe7 {[%clk 0:00:09]}  Qh2+ {[%clk 0:00:05]} 35. Ke3 {[%clk 0:00:08]}  Qg3+ {[%clk 0:00:03]} 36. Rf3 {[%clk 0:00:08]}  Qxg5+ {[%clk 0:00:03]} 37. Qxg5+ {[%clk 0:00:08]} 1-0


[Site "https://www.chess.com"]

[Event "Late Titled Tuesday Blitz February 8 2022"]
[White "Janaszak, Dawid"]
[Black "Kopczynski, Michal"]
[WhiteFideId "1119206"]
[BlackFideId "1124200"]
[WhiteElo "2199"]
[BlackElo "2235"]
[Result "1-0"]
[Round "07"]
[TimeControl "180+1"]
[Date "2022.02.09"]
[WhiteClock "0:00:58"]
[BlackClock "0:01:16"]

1. e4 {[%clk 0:03:00]}  c5 {[%clk 0:02:59]} 2. Nc3 {[%clk 0:03:00]}  g6 {[%clk 0:02:58]} 3. h4 {[%clk 0:02:57]}  Bg7 {[%clk 0:02:58]} 4. Bc4 {[%clk 0:02:55]}  e6 {[%clk 0:02:57]} 5. h5 {[%clk 0:02:54]}  Ne7 {[%clk 0:02:56]} 6. d3 {[%clk 0:02:54]}  Nbc6 {[%clk 0:02:54]} 7. h6 {[%clk 0:02:46]}  Bf8 {[%clk 0:02:49]} 8. Bg5 {[%clk 0:02:42]}  a6 {[%clk 0:02:48]} 9. Bf6 {[%clk 0:02:36]}  Rg8 {[%clk 0:02:48]} 10. a4 {[%clk 0:02:36]}  Qc7 {[%clk 0:02:48]} 11. Nf3 {[%clk 0:02:29]}  d6 {[%clk 0:02:48]} 12. Ng5 {[%clk 0:02:28]}  Ne5 {[%clk 0:02:26]} 13. Bxe5 {[%clk 0:02:14]}  dxe5 {[%clk 0:02:27]} 14. Nxh7 {[%clk 0:02:14]}  Rh8 {[%clk 0:02:21]} 15. Nf6+ {[%clk 0:02:09]}  Kd8 {[%clk 0:02:21]} 16. h7 {[%clk 0:02:05]}  Bg7 {[%clk 0:02:17]} 17. Qf3 {[%clk 0:02:05]}  Bd7 {[%clk 0:02:13]} 18. Nxd7 {[%clk 0:02:03]}  Qxd7 {[%clk 0:02:09]} 19. Qxf7 {[%clk 0:02:02]}  Nc6 {[%clk 0:02:08]} 20. Bxe6 {[%clk 0:01:46]}  Qxf7 {[%clk 0:02:05]} 21. Bxf7 {[%clk 0:01:47]}  Nd4 {[%clk 0:02:05]} 22. Kd2 {[%clk 0:01:40]}  Ke7 {[%clk 0:02:03]} 23. Bxg6 {[%clk 0:01:37]}  Raf8 {[%clk 0:01:56]} 24. f3 {[%clk 0:01:35]}  Bf6 {[%clk 0:01:53]} 25. Nd5+ {[%clk 0:01:35]}  Kd6 {[%clk 0:01:54]} 26. Rh5 {[%clk 0:01:19]}  Ne6 {[%clk 0:01:38]} 27. Nxf6 {[%clk 0:01:13]}  Rxf6 {[%clk 0:01:39]} 28. Bf5 {[%clk 0:01:08]}  Ng7 {[%clk 0:01:27]} 29. Rh4 {[%clk 0:01:07]}  Nxf5 {[%clk 0:01:25]} 30. exf5 {[%clk 0:01:06]}  Rxf5 {[%clk 0:01:26]} 31. Rah1 {[%clk 0:01:06]}  Rg5 {[%clk 0:01:26]} 32. Rg4 {[%clk 0:01:04]}  Rxg4 {[%clk 0:01:23]} 33. fxg4 {[%clk 0:01:04]}  Ke6 {[%clk 0:01:23]} 34. a5 {[%clk 0:00:58]}  Kf6 {[%clk 0:01:23]} 35. Ke3 {[%clk 0:00:58]}  Kg5 {[%clk 0:01:18]} 36. Ke4 {[%clk 0:00:58]}  Kxg4 {[%clk 0:01:17]} 37. Kxe5 {[%clk 0:00:59]}  Kg5 {[%clk 0:01:16]} 38. Kd6 {[%clk 0:00:58]} 1-0


[Site "https://www.chess.com"]

[Event "Late Titled Tuesday Blitz February 8 2022"]
[White "Jaskolka, Tomasz"]
[Black "Rorrer, Grayson"]
[WhiteFideId "1170791"]
[BlackFideId "30944996"]
[WhiteElo "2054"]
[BlackElo "2122"]
[Result "0-1"]
[Round "07"]
[TimeControl "180+1"]
[Date "2022.02.09"]
[WhiteClock "0:00:19"]
[BlackClock "0:01:14"]

1. d4 {[%clk 0:03:00]}  Nf6 {[%clk 0:02:59]} 2. Bf4 {[%clk 0:02:58]}  e6 {[%clk 0:02:59]} 3. e3 {[%clk 0:02:58]}  c5 {[%clk 0:02:59]} 4. Nd2 {[%clk 0:02:56]}  cxd4 {[%clk 0:03:00]} 5. exd4 {[%clk 0:02:56]}  d6 {[%clk 0:03:00]} 6. Ngf3 {[%clk 0:02:56]}  Be7 {[%clk 0:03:01]} 7. Bd3 {[%clk 0:02:56]}  O-O {[%clk 0:03:02]} 8. Qe2 {[%clk 0:02:55]}  Nbd7 {[%clk 0:03:02]} 9. c3 {[%clk 0:02:56]}  b6 {[%clk 0:03:01]} 10. O-O-O {[%clk 0:02:54]}  Bb7 {[%clk 0:03:00]} 11. h4 {[%clk 0:02:38]}  Qc8 {[%clk 0:02:53]} 12. Kb1 {[%clk 0:02:38]}  a6 {[%clk 0:02:52]} 13. Ng5 {[%clk 0:02:33]}  Re8 {[%clk 0:02:50]} 14. Ndf3 {[%clk 0:02:26]}  h6 {[%clk 0:02:42]} 15. Rde1 {[%clk 0:02:05]}  Bf8 {[%clk 0:02:37]} 16. Rh3 {[%clk 0:01:39]}  b5 {[%clk 0:02:31]} 17. Ne4 {[%clk 0:01:31]}  Nxe4 {[%clk 0:02:24]} 18. Bxe4 {[%clk 0:01:31]}  Bxe4+ {[%clk 0:02:24]} 19. Qxe4 {[%clk 0:01:31]}  Nf6 {[%clk 0:02:25]} 20. Qd3 {[%clk 0:01:28]}  Rb8 {[%clk 0:02:12]} 21. g4 {[%clk 0:01:18]}  e5 {[%clk 0:01:59]} 22. dxe5 {[%clk 0:01:10]}  Qxg4 {[%clk 0:01:58]} 23. Rg3 {[%clk 0:01:07]}  Qxf4 {[%clk 0:01:57]} 24. exf6 {[%clk 0:01:07]}  Rxe1+ {[%clk 0:01:56]} 25. Nxe1 {[%clk 0:01:08]}  Qxf2 {[%clk 0:01:54]} 26. Nc2 {[%clk 0:00:40]}  Qxf6 {[%clk 0:01:50]} 27. Nd4 {[%clk 0:00:39]}  Re8 {[%clk 0:01:47]} 28. a3 {[%clk 0:00:38]}  Qxh4 {[%clk 0:01:42]} 29. Ka2 {[%clk 0:00:35]}  Qe4 {[%clk 0:01:35]} 30. Qd2 {[%clk 0:00:33]}  Qd5+ {[%clk 0:01:33]} 31. Kb1 {[%clk 0:00:32]}  g6 {[%clk 0:01:32]} 32. Qf4 {[%clk 0:00:26]}  Re1+ {[%clk 0:01:27]} 33. Kc2 {[%clk 0:00:26]}  Qe4+ {[%clk 0:01:27]} 34. Qxe4 {[%clk 0:00:26]}  Rxe4 {[%clk 0:01:28]} 35. Nc6 {[%clk 0:00:22]}  h5 {[%clk 0:01:26]} 36. b3 {[%clk 0:00:22]}  h4 {[%clk 0:01:25]} 37. Rh3 {[%clk 0:00:22]}  g5 {[%clk 0:01:25]} 38. a4 {[%clk 0:00:22]}  bxa4 {[%clk 0:01:24]} 39. bxa4 {[%clk 0:00:23]}  Rxa4 {[%clk 0:01:24]} 40. Kb3 {[%clk 0:00:24]}  Rf4 {[%clk 0:01:23]} 41. c4 {[%clk 0:00:22]}  Kh7 {[%clk 0:01:18]} 42. Nd8 {[%clk 0:00:20]}  Be7 {[%clk 0:01:14]} 43. Nc6 {[%clk 0:00:20]}  Bf6 {[%clk 0:01:15]} 44. Kb4 {[%clk 0:00:20]}  g4 {[%clk 0:01:14]} 45. Rh1 {[%clk 0:00:20]}  g3 {[%clk 0:01:14]} 46. Ka5 {[%clk 0:00:19]} 0-1


[Site "https://www.chess.com"]